{"text_format":"1","workbook":"xlsx","n_sheets":1,"sheets":["Feuil1"],"not_rendered":{"charts":0,"images":3,"macros":1,"external_links":0,"defined_names":2,"comments":0,"pivot_tables":0},"unopened":[],"bounds":{"document_bytes":16777216,"sheet_cells":100000,"rows_first":2000,"rows_last":500,"rows_between":2000,"halvings":0,"cell_chars":16384,"cell_head_chars":4096},"cells_cut":0,"cells_raw":0,"read":"whole","date_system":"1900"}

{"sheet":"Feuil1","index":0,"n_rows":22,"n_cols":16,"rows_kept":22,"cut":false,"hidden":false,"merged":[[6,6,6,10],[8,14,9,15],[7,14,7,15],[8,2,9,3],[8,4,9,5],[8,6,9,7],[8,8,9,9],[8,10,9,11],[8,12,9,13]]}
["ذكر"]
["أنثى"]
[]
[]
[]
[]
[null,null,null,null,null,null,"احصائيات التلاميذ"]
[null,null,null,null,null,null,null,null,null,null,null,null,null,"تحيين:",{"$f":"NOW()","v":"2021-10-12T21:06:40.400"}]
[null,null,"الأول ابتدائي عام",null,"الثاني ابتدائي عام",null,"الثالث ابتدائي عام",null,"الرابع ابتدائي عام",null,"الخامس ابتدائي عام",null,"السادس ابتدائي عام",null,"مجموع"]
[]
[null,null,"مجموع","إناث","مجموع","إناث","مجموع","إناث","مجموع","إناث","مجموع","إناث","مجموع","إناث","مجموع","إناث"]
[null,null,null,null,null,null,null,null,null,null,null,null,null,null,{"$f":"C12+E12+G12+I12+K12+M12","v":0},{"$f":"D12+F12+H12+J12+L12+N12","v":0}]
[null,null,null,null,null,null,null,null,null,null,null,null,null,null,0,0]
[null,null,null,null,null,null,null,null,null,null,null,null,null,null,0,0]
[null,null,null,null,null,null,null,null,null,null,null,null,null,null,0,0]
[null,null,null,null,null,null,null,null,null,null,null,null,null,null,0,0]
[null,null,null,null,null,null,null,null,null,null,null,null,null,null,0,0]
[null,null,null,null,null,null,null,null,null,null,null,null,null,null,{"$f":"C18+E18+G18+I18+K18+M18","v":0},{"$f":"D18+F18+H18+J18+L18+N18","v":0}]
[null,null,null,null,null,null,null,null,null,null,null,null,null,null,{"$f":"C19+E19+G19+I19+K19+M19","v":0},{"$f":"D19+F19+H19+J19+L19+N19","v":0}]
[null,null,null,null,null,null,null,null,null,null,null,null,null,null,{"$f":"C20+E20+G20+I20+K20+M20","v":0},{"$f":"D20+F20+H20+J20+L20+N20","v":0}]
[null,null,null,null,null,null,null,null,null,null,null,null,null,null,{"$f":"C21+E21+G21+I21+K21+M21","v":0},{"$f":"D21+F21+H21+J21+L21+N21","v":0}]
[null,"مجموع عام",{"$f":"SUM(C12:C21)","v":0},{"$f":"SUM(D12:D21)","v":0},0,0,0,0,0,0,0,0,0,0,0,0]